Cogmind - Beta 16.1 @@@ ROGUE MODE // 2026.02.18 @ 20:21:38 Player: Xcalibur Result: Destroyed by G-73 Enforcer with Phase Gun Performance ------------- Evolutions (8) 4000 Regions Visited (24) 4800 Robots Destroyed (145) 725 Value Destroyed (8057) 8057 Prototype IDs (88) 1760 Alien Tech Used (4) 800 Bonus (10018) 10018 TOTAL SCORE: 30160 Bonus ------- High Alert Combat Kills 109 Follower Combat Kills 7009 Registered with UFD 300 Met Optimus in HQ 500 Met Data Miner 300 Met Zhirov 300 Met Warlord at Base 500 MAIN.C Attacked Warlord 500 Scanned by Researcher 500 Cogmind --------- Core Integrity 0/1450 Matter 269/300 Energy 69/100 System Corruption 16% Temperature Cool (9) Movement Core (50) Location -2/Protoforge Parts ------- > --- POWER (3) -------- (None) > --- PROPULSION (4) --- (None) > --- UTILITY (10) ----- (None) > --- WEAPON (7) ------- (None) > --- INVENTORY (5) ---- Experimental Matter Compressor (288) Deep Structural Scanner Advanced Sensor Array Hellfire Missile Launcher Peak State ------------ > --- POWER ------------ Light Antimatter Reactor Quantum Reactor Light Quantum Reactor > --- PROPULSION ------- Armored Heavy Treads Centrium Wheel Centrium Wheel > --- UTILITY ---------- Experimental Heat Sink Experimental Heat Sink High-capacity Storage Unit Experimental Targeting Computer Advanced Target Analyzer Quantum Capacitor Concept Core Shell Centrium Medium Armor Plating Improved Remote Shield > --- WEAPON ----------- Enhanced Nova Cannon Enhanced Nova Cannon Null Cannon Railgun Concept XC Strikerail Concept XC Strikerail Linear Accelerator > --- INVENTORY -------- Armored Huge Wheel Experimental Heat Sink Coolant Network Concept Chromion Battery Experimental Matter Compressor Deep Structural Scanner Advanced Sensor Array Seismic Detector Experimental Weapon Shielding Improved Remote Shield Long-range Tractor Beam Transdimensional Reconstructor Precision Phase Gun Fusion Bomb Launcher Hellfire Missile Launcher Sigix Terminator [Rating: 212] Favorites ----------- Power Reinforced Fission Core Engine Angular Momentum Engine Power Core Reinforced Fission Core Reactor Quantum Reactor Propulsion Wheel Treads Advanced Treads Leg Aluminum Leg Wheel Wheel Flight Unit Experimental Surge Thruster Utility High-capacity Storage Unit Device Seismic Detector Storage High-capacity Storage Unit Processor Improved Signal Interpreter Hackware Makeshift Hacking Suite Protection Enhanced Scrap Shield Weapon 1B-0RG's Assimilator Energy Gun Dispersion Rifle Energy Cannon Enhanced Nova Cannon Ballistic Gun Railgun Ballistic Cannon Linear Accelerator Launcher Rocket Launcher Special Weapon Mining Laser Slashing Weapon Companion Sword Special Melee Weapon 1B-0RG's Assimilator Build | -11 -10 -10 -10 -8 -6 -6 -6 -6 -5 -5 -5 -5 -5 -4 -4 -4 -4 -4 -3 -3 -3 -2 -2 -2 ------- Run | Yrd Mat Min Sub Scr Fac Low Low Dat Pro Fac Upp Upp War Pro Fac Upp Upp Zhi Pro Res Tes Res Qua Frg Slots Evolved 16 | . . . . . 8 . . . . 2 . . . . 2 . . . . 2 . 2 . . Power 2 | . . . . . . . . . . . . . . . . . . . . . . 2 . . Propulsion 2 | . . . . . 2 . . . . . . . . . . . . . . . . . . . Utility 8 | . . . . . 3 . . . . 1 . . . . 2 . . . . 2 . . . . Weapon 4 | . . . . . 3 . . . . 1 . . . . . . . . . . . . . . Parts Attached 200 | 5 9 3 15 13 15 4 . . 2 8 1 3 11 1 11 2 2 5 3 9 8 31 18 21 Power 22 | . . 1 4 3 2 . . . 1 . . . . 1 . . . 1 . . . 7 . 2 Engine 6 | . . 1 3 1 1 . . . . . . . . . . . . . . . . . . . Core 7 | . . . 1 2 1 . . . 1 . . . . 1 . . . 1 . . . . . . Reactor 9 | . . . . . . . . . . . . . . . . . . . . . . 7 . 2 Propulsion 41 | 3 . . 5 2 5 1 . . . . 1 . 2 . 5 . . . 2 1 . 9 3 2 Treads 10 | 2 . . 1 1 3 1 . . . . . . . . 1 . . . . . . . . 1 Leg 4 | 1 . . . . . . . . . . . . 1 . . . . . 1 . . . 1 . Wheel 25 | . . . 4 1 2 . . . . . 1 . . . 4 . . . 1 1 . 9 2 . Hover . | . . . . . . . . . . . . . . . . . . . . . . . . . Flight 2 | . . . . . . . . . . . . . 1 . . . . . . . . . . 1 Utility 86 | 2 5 2 1 3 6 3 . . 1 6 . 2 5 . 4 1 2 3 1 6 4 8 9 12 Device 40 | 2 . 2 . 1 1 1 . . 1 3 . 1 1 . 3 . 2 1 1 5 2 4 4 5 Storage 9 | . 4 . . . . . . . . . . 1 . . . . . 1 . . 2 . . 1 Processor 13 | . 1 . . 1 2 2 . . . . . . 2 . . . . . . . . 1 4 . Hackware 9 | . . . . . 2 . . . . 2 . . 2 . . . . . . 1 . 2 . . Protection 15 | . . . 1 1 1 . . . . 1 . . . . 1 1 . 1 . . . 1 1 6 Artifact . | . . . . . . . . . . . . . . . . . . . . . . . . . Weapon 51 | . 4 . 5 5 2 . . . . 2 . 1 4 . 2 1 . 1 . 2 4 7 6 5 Energy Gun 10 | . . . 1 1 . . . . . . . . 3 . 1 1 . . . . . 1 . 2 Energy Cannon 12 | . . . 1 . . . . . . 2 . . . . . . . 1 . . 3 2 3 . Ballistic Gun 19 | . 3 . 3 3 . . . . . . . . 1 . 1 . . . . 2 . 4 . 2 Ballistic Cannon 3 | . . . . . . . . . . . . . . . . . . . . . 1 . 2 . Launcher 4 | . . . . 1 . . . . . . . 1 . . . . . . . . . . 1 1 Special Weapon 1 | . 1 . . . . . . . . . . . . . . . . . . . . . . . Impact Weapon . | . . . . . . . . . . . . . . . . . . . . . . . . . Slashing Weapon 1 | . . . . . 1 . . . . . . . . . . . . . . . . . . . Piercing Weapon . | . . . . . . . . . . . . . . . . . . . . . . . . . Special Melee Weapon 1 | . . . . . 1 . . . . . . . . . . . . . . . . . . . Unidentified Prototypes 36 | . . 1 . . . . . . . . . 1 7 . 1 . . 3 . . 7 4 3 9 Parts Lost 67 | . . . 11 . 3 . . . 1 1 . 1 . 1 1 . . . . . . 21 . 27 Power 10 | . . . 3 . 1 . . . . . . . . . . . . . . . . 3 . 3 Propulsion 22 | . . . 4 . 1 . . . . 1 . 1 . . 1 . . . . . . 10 . 4 Utility 22 | . . . . . 1 . . . 1 . . . . 1 . . . . . . . 6 . 13 Weapon 13 | . . . 4 . . . . . . . . . . . . . . . . . . 2 . 7 Highest Loss Streak 14 | . . . 3 . 2 . . . 1 1 . 1 . 1 1 . . . . . . 14 . 14 To Critical Strikes 4 | . . . 1 . . . . . . . . . . . . . . . . . . 1 . 2 Average Backups 16 | 6 8 11 14 13 17 18 18 19 18 18 18 18 18 17 18 17 18 17 18 17 17 15 16 15 Power 1 | 1 1 1 1 1 . . . . . . 1 1 1 2 2 2 2 2 2 2 2 . . . Propulsion 2 | 4 2 3 3 1 2 4 5 5 5 3 1 2 2 2 2 3 2 2 2 1 1 . . . Utility 8 | . 2 1 5 5 6 9 9 10 9 11 11 10 11 11 10 9 9 8 9 9 10 9 10 9 Weapon 3 | 1 2 5 4 2 6 3 3 3 3 2 2 3 2 2 2 3 4 3 3 3 3 3 4 3 Tool/Special . | . . . . . . . . . . . . . . . . . . . . . . . . . Unused Backups 54 | 6 4 . 5 5 8 4 . . . 1 1 . 3 . 3 1 . 2 . . 3 . 7 1 Power 3 | 1 . . . 1 1 . . . . . . . . . . . . . . . . . . . Propulsion 5 | 1 1 . 1 1 . . . . . . . . . . . . . . . . . . 1 . Utility 26 | 1 1 . 3 2 1 2 . . . 1 1 . 1 . 3 1 . 2 . . 2 . 5 . Weapon 18 | 3 2 . 1 1 6 2 . . . . . . . . . . . . . . 1 . 1 1 Tool/Special 2 | . . . . . . . . . . . . . 2 . . . . . . . . . . . Average Slot Usage (%) 74 | . 100 98 97 85 67 59 60 60 59 64 70 66 69 72 70 75 75 64 74 76 76 70 91 85 Engine 3 | . 14 14 8 11 . 6 6 6 4 . . . . . . . . . . . . . . . Core 3 | . . . 3 1 5 . . . 1 5 5 5 5 5 5 5 5 5 5 4 4 2 . . Reactor 1 | . . . . . . . . . . . . . . . . . . . . . . 5 11 11 Treads 4 | . 28 28 11 1 12 . . . . . 7 5 9 11 5 . . . . . . . . . Wheel 12 | . . . 16 15 8 12 13 13 13 10 8 7 5 5 10 20 20 20 19 18 18 13 13 11 Device 8 | . 14 12 9 8 8 6 8 10 5 3 5 4 4 4 8 8 10 8 10 14 12 11 17 16 Storage 6 | . 14 14 14 13 6 6 6 6 6 5 5 5 5 5 5 5 5 5 5 4 4 4 4 3 Processor 3 | . . . . 4 5 12 6 6 6 5 5 5 5 2 . . . . . . . . 5 7 Hackware 8 | . . . . . 5 6 6 6 6 15 17 16 16 16 15 15 15 15 15 15 18 13 4 . Protection 3 | . . . 4 . 4 . 3 2 6 1 . . . 3 6 6 5 5 5 4 4 3 3 6 Energy Gun 2 | . 3 . 2 7 . . . . . . . . 3 5 3 5 5 . 5 3 . . . 1 Energy Cannon 2 | . . . 7 6 . . . . . . . . . . . . . . . . 5 6 11 10 Ballistic Gun 5 | . 22 28 18 13 . . . . . . . . . 5 5 5 4 . 5 5 2 1 15 8 Special Melee Weapon 3 | . . . . . 5 6 6 6 6 5 5 5 5 5 5 5 5 5 5 4 4 2 . . Peak Build Rating 212 | 9 9 17 29 36 113 114 113 113 113 121 117 118 131 134 149 141 141 146 153 164 171 193 182 212 Average Rating 106 | 7 7 8 15 25 103 112 112 113 111 118 115 114 124 130 142 139 138 128 150 159 156 150 166 173 On Entrance 104 | 6 8 7 9 23 29 113 113 113 113 109 117 115 114 131 134 139 141 141 146 150 158 158 155 170 Avg Prop Armor Cover (%) 9 | . . . 10 11 6 9 . . . 13 12 10 14 12 4 . . . . . . . . . Naked Turns 107 | . . . . 100 . . . . . . . . . . . . . . . . . . . 7 Heaviest Build 203 | 13 29 29 62 64 126 129 132 129 140 145 127 127 148 149 170 166 148 151 151 155 157 203 179 183 Greatest Support 86 | 40 40 40 40 40 86 56 56 56 56 56 38 38 28 28 52 52 52 52 52 52 52 58 60 60 Greatest Overweight (x) 12 | . . . 3 6 11 3 2 2 2 4 4 4 5 5 5 3 2 2 3 2 3 12 4 5 Average Overweight (x) 2 | . . . 1 4 1 1 1 1 2 2 3 3 4 4 3 2 2 2 2 2 2 3 2 2 Largest Inventory Capacity 20 | 8 20 15 20 20 20 20 20 20 20 20 20 20 20 20 20 20 20 20 20 20 20 20 20 20 Average Capacity 19 | 8 10 15 17 19 20 20 20 20 20 20 20 20 20 20 20 20 20 20 20 20 20 19 20 19 Most Carried 20 | 8 10 14 20 20 20 20 20 20 20 20 20 20 20 20 20 20 20 20 20 20 20 20 20 20 Average Carried 18 | 6 8 11 16 18 17 19 19 20 19 19 19 19 19 19 19 19 19 19 19 19 19 16 19 18 Final Capacity 20 | 8 15 15 20 20 20 20 20 20 20 20 20 20 20 20 20 20 20 20 20 20 20 20 20 5 Final Carried 20 | 8 9 14 20 20 20 19 20 20 20 18 20 20 20 20 20 20 20 20 20 20 20 18 20 4 Class Distribution -------------------- 42% | Hacker-Mutant 27% | Mutant 9% | Assassin 8% | Scavenger-Executioner 5% | Scavenger-Mutant 5% | Derelict-Mutant Dominant Class ---------------- Mutant | -10/Materials Mutant | -10/Mines Scavenger-Mutant | -10/Subcaves Mutant | -8/Scraptown Derelict-Mutant | -6/Factory Assassin | -6/Lower Caves Mutant | -6/Lower Caves Assassin | -6/Data Miner Mutant | -5/Proximity Caves Hacker-Mutant | -5/Factory Hacker-Mutant | -5/Upper Caves Hacker-Mutant | -5/Upper Caves Hacker-Mutant | -5/Warlord Hacker-Mutant | -4/Proximity Caves Hacker-Mutant | -4/Factory Hacker-Mutant | -4/Upper Caves Hacker-Mutant | -4/Upper Caves Hacker-Mutant | -4/Zhirov Hacker-Mutant | -3/Proximity Caves Hacker-Mutant | -3/Research Hacker-Mutant | -3/Testing Hacker-Mutant | -2/Research Scavenger-Executioner | -2/Quarantine Scavenger-Executioner | -2/Protoforge Resources | -11 -10 -10 -10 -8 -6 -6 -6 -6 -5 -5 -5 -5 -5 -4 -4 -4 -4 -4 -3 -3 -3 -2 -2 -2 ----------- Run | Yrd Mat Min Sub Scr Fac Low Low Dat Pro Fac Upp Upp War Pro Fac Upp Upp Zhi Pro Res Tes Res Qua Frg Matter Collected 23132 | 265 72 43 460 392 1342 338 284 . 1427 2481 483 1540 744 850 2834 557 1000 380 500 747 760 3851 1120 662 Remotely 2257 | . . . . . . . . . 155 49 126 243 . . 389 155 439 . . . . 477 120 104 Salvage Created 7949 | 100 126 73 414 405 21 57 . . . 460 189 136 . 86 774 103 191 311 35 280 132 1825 970 1261 Parts 339 | 7 14 5 33 25 2 . . . . 27 6 2 . 3 36 5 12 4 3 13 6 51 38 47 Haulers Intercepted 2 | . 1 . . . . . . . . . . . . . . . . . . . . 1 . . Recyclers Shooed 10 | . 1 . . . 2 . . . . . . . . . 5 . . . . . 1 1 . . Parts Field Recycled . | . . . . . . . . . . . . . . . . . . . . . . . . . Retrieved Matter . | . . . . . . . . . . . . . . . . . . . . . . . . . Parts Self-Destructed 102 | . . . . . . 1 4 . 26 . 2 12 . 12 . 10 26 1 8 . . . . . Prevented 5 | . . . . . . . . . 2 . . 2 . . . . 1 . . . . . . . Parts Restored . | . . . . . . . . . . . . . . . . . . . . . . . . . Kills | -11 -10 -10 -10 -8 -6 -6 -6 -6 -5 -5 -5 -5 -5 -4 -4 -4 -4 -4 -3 -3 -3 -2 -2 -2 ------- Run | Yrd Mat Min Sub Scr Fac Low Low Dat Pro Fac Upp Upp War Pro Fac Upp Upp Zhi Pro Res Tes Res Qua Frg Combat Hostiles Destroyed 102 | . 3 2 9 9 1 . . . . 2 . . . 2 10 2 5 . 1 3 . 12 16 25 Melee 3 | . . . . . 1 . . . . 2 . . . . . . . . . . . . . . Guns 26 | . 3 2 6 2 . . . . . . . . . 2 7 . . . 1 3 . . . . Cannons 44 | . . . 3 . . . . . . . . . . . . . . . . . . 9 14 18 AOE 21 | . . . . 7 . . . . . . . . . . 3 2 5 . . . . . . 4 Classes Destroyed 26 | 2 3 1 3 3 . . . . . 3 1 1 . 1 1 . . . . 1 . 2 3 1 Worker 8 | . . . . . . . . . . 3 . . . . . . . . . 2 . . . 3 Tunneler 5 | 2 . . . . . . . . . 1 . . . . . . . . . 1 . 1 . . Hauler 2 | . 1 . . . . . . . . . . . . . . . . . . . . 1 . . Recycler 14 | 1 . . . . . . . . . 2 . . . . 3 . . . . 1 1 5 1 . Minesweeper 1 | . . . . . . . . . . . . 1 . . . . . . . . . . . . Operator 1 | . . . . . . . . . . 1 . . . . . . . . . . . . . . Drone 4 | . . . . . . . . . . . . . . 1 . . . . . . . . . 3 Watcher 8 | . 1 . . . . . . . . . . . . . . . . . . . . 2 1 4 Swarmer 24 | . 3 . . . 1 . . . . 1 . . . 1 7 2 4 . 1 2 . 2 . . Cutter 1 | . . . . . . . . . . . . . . . . . . . . 1 . . . . Grunt 12 | . . 2 . . . . . . . . . . . . 2 . . . . . . . 1 7 Researcher 3 | . . . . . . . . . . . . . . . . . . . . . . . 1 2 Sentry 3 | . . . 1 . . . . . . . . . . . . . . . . . . 2 . . Specialist 1 | . . . . . . . . . . . . . . . . . . . . . . 1 . . Hunter 9 | . . . . . . . . . . 1 . . . . . . . . . . . 5 1 2 Programmer 19 | . . . . . . . . . . . . . . . 1 . 1 . . . . 2 12 3 Behemoth 2 | . . . . . . . . . . . . . . . . . . . . . . 1 . 1 Hotshot 4 | . . . . . . . . . . . . . . . . . . . . . . . . 4 Decapitator 1 | . . . . . . . . . . . . . . . . . . . . . . . . 1 Executioner 2 | . . . . . . . . . . . . . . . . . . . . . . . . 2 Alpha 7 3 | . . . . . . . . . . . . . . . . . . . . . . . 1 2 Fortress 1 | . . . . . . . . . . . . . . . . . . . . . . . 1 . Artisan 1 | . . . 1 . . . . . . . . . . . . . . . . . . . . . Subdweller 8 | . . . 8 . . . . . . . . . . . . . . . . . . . . . Federalist 1 | . . . . 1 . . . . . . . . . . . . . . . . . . . . Ranger 3 | . . . . 3 . . . . . . . . . . . . . . . . . . . . Scrapper 4 | . . . . 4 . . . . . . . . . . . . . . . . . . . . Decomposer 5 | . . . . . . . . . . . 2 . . . . 1 2 . . . . . . . Packrat 3 | . . . . . . . . . . . 1 1 . 1 . . . . . . . . . . Samaritan 4 | . . . . . . . . . . . 2 . . . . . 2 . . . . . . . Thug 1 | . . . . 1 . . . . . . . . . . . . . . . . . . . . Best Kill Streak 9 | 2 3 2 2 9 1 . . . . 2 . 1 . 1 4 2 4 . 1 2 1 7 3 8 Combat Bots Only 9 | . 3 2 2 9 1 . . . . 1 . . . 1 3 2 4 . 1 2 . 4 3 6 Max Kills in Single Turn 8 | 1 1 1 1 2 1 . . . . 1 1 1 . 1 3 2 3 . 1 2 1 1 1 8 Gunslinging . | . . . . . . . . . . . . . . . . . . . . . . . . . Exploded 4 | . . . . 2 . . . . . . . . . . 3 2 3 . . . . . . 4 Melee 1 | . . . . . 1 . . . . 1 . . . . . . . . . . . . . . Uniques/NPCs Destroyed . | . . . . . . . . . . . . . . . . . . . . . . . . . Combat | -11 -10 -10 -10 -8 -6 -6 -6 -6 -5 -5 -5 -5 -5 -4 -4 -4 -4 -4 -3 -3 -3 -2 -2 -2 -------- Run | Yrd Mat Min Sub Scr Fac Low Low Dat Pro Fac Upp Upp War Pro Fac Upp Upp Zhi Pro Res Tes Res Qua Frg Hostile Shots Fired 1167 | . 12 16 63 33 55 6 4 . 3 43 . 52 . 33 108 45 17 . 18 17 3 277 49 313 Missed 351 | . 3 2 17 12 11 1 1 . . 16 . 15 . 9 42 17 7 . 7 11 . 77 13 90 Hits 816 | . 9 14 46 21 44 5 3 . 3 27 . 37 . 24 66 28 10 . 11 6 3 200 36 223 Melee 12 | . . . . . . 3 . . 3 . . . . 1 . . 2 . . 3 . . . . Projectile 804 | . 9 14 46 21 44 2 3 . . 27 . 37 . 23 66 28 8 . 11 3 3 200 36 223 AOE 8 | . . . 4 . . . . . . 1 . . . . 1 . . . . 1 . . . 1 Critical Strikes 70 | . . . 3 . . 1 . . . 2 . 1 . 1 4 4 1 . . 2 . 7 2 42 Actively Blocked 8 | . . . . . . . . . . . . . . . . . . . . . . . . 8 Part Disruptions 1 | . . . . . . . . . . . . . . . . . . . . . . 1 . . Actively Blocked 1 | . . . . . . . . . . . . . . . . . . . . . . 1 . . Damage Taken 17978 | . 75 185 1110 348 658 203 56 . 160 744 . 784 10 770 1152 368 222 . 283 382 104 3958 612 5794 Core 2636 | . 21 21 158 18 180 46 28 . 42 148 . 138 10 113 154 . 34 . 28 73 . 577 19 828 Absorbed by Shields 2878 | . . . . . 129 . 15 . 11 . . . . . 302 139 69 . 74 69 . 1079 178 813 Reduced by Siege Mode 146 | . . . . . . . . . . . . . . . . . . . . . . . . 146 Redirected to Shielding 881 | . . . . . . . . . . . . . . . . . . . . . . 118 55 708 Ignored by Resistances 407 | . . . . . 16 . . . 5 56 . . . 36 212 82 . . . . . . . . Regen/Repaired (Parts) 1610 | . . . . . 108 121 14 . 41 136 . 263 117 94 183 75 45 . 30 15 . 188 180 . Core Remaining (%) 68 | 100 . . . 12 . . . . 65 . . . . 59 . . . . 81 . 94 . . . Volleys Fired 618 | 15 45 11 60 9 . . . . . 11 2 2 . 9 47 21 21 9 3 20 10 104 68 151 Largest 6 | 2 2 2 2 2 . . . . . 1 1 1 . 2 2 2 1 1 2 2 2 5 2 6 Hottest 462 | 60 120 40 110 90 . . . . . 90 90 33 . 126 128 121 88 98 126 126 125 260 184 462 Shots Fired 818 | 28 77 22 105 12 . . . . . 11 2 2 . 13 79 27 21 9 7 40 15 112 70 166 Gun 389 | 28 68 22 80 6 . . . . . . . . . 13 66 26 14 . 7 40 5 4 1 9 Cannon 400 | . . . 23 . . . . . . 11 2 . . . 12 . . 9 . . 10 108 69 156 Launcher 18 | . . . . 6 . . . . . . . 2 . . 1 1 7 . . . . . . 1 Special 11 | . 9 . 2 . . . . . . . . . . . . . . . . . . . . . Kinetic 280 | 15 63 22 63 3 . . . . . . . . . 4 52 6 . . 3 26 5 6 3 9 Thermal 494 | 13 14 . 42 3 . . . . . 11 2 . . 9 26 20 14 9 4 14 10 79 67 157 Explosive 17 | . . . . 6 . . . . . . . 2 . . 1 1 7 . . . . . . . Electromagnetic 27 | . . . . . . . . . . . . . . . . . . . . . . 27 . . Robot Hit Streak 32 | 4 5 4 10 8 . . . . . 12 . 1 . 4 5 17 6 7 13 18 3 10 11 32 Robot Miss Streak 7 | 2 5 3 2 1 . . . . . 1 . . . 2 7 2 3 1 . 4 1 4 2 5 Penetration Max 2 | . . . . 1 . . . . . . . . . . 2 . . . . . . . . . Secondary Targets 3 | . 1 . 1 . . . . . . . . . . 1 . . . . . . . . . . Max Gunslinging Chain 1 | . 1 . 1 . . . . . . . . . . 1 . . . . . . . . . . Capacitor 276 | . . . . . . . . . . . . . . . . . . . . . . 65 65 146 Shots Hit Robots 512 | 19 34 14 71 9 . . . . . 14 5 11 . 8 33 21 11 8 6 19 7 52 39 131 Core Hits 257 | 6 9 6 23 13 4 8 . . . 7 4 4 . 5 25 7 24 7 2 10 3 25 15 50 Critical Kills 17 | . 1 . . . . . . . . . . . . 1 1 1 3 . . 1 . 3 3 3 Critical Parts Destroyed 4 | . . . . . . . . . . . . . . . 1 3 . . . . . . . . Critical Strikes 22 | . 1 . 1 . . . . . . . . . . 1 2 4 3 . . 1 . 3 3 3 Meltdown 9 | . . . . . . . . . . . . . . . . . . . . . . 3 3 3 Destroy 13 | . 1 . 1 . . . . . . . . . . 1 2 4 3 . . 1 . . . . Melee Attacks 40 | . . . . . . . . . . 16 7 17 . . . . . . . . . . . . Impact . | . . . . . . . . . . . . . . . . . . . . . . . . . Slashing 40 | . . . . . . . . . . 16 7 17 . . . . . . . . . . . . Piercing . | . . . . . . . . . . . . . . . . . . . . . . . . . Sneak Attacks 16 | . . . . . . . . . . 7 5 4 . . . . . . . . . . . . Combat Hostiles . | . . . . . . . . . . . . . . . . . . . . . . . . . Follow-up Attacks . | . . . . . . . . . . . . . . . . . . . . . . . . . Damage Inflicted 29914 | 178 332 146 815 1013 165 219 . . . 743 394 761 . 188 1456 631 1268 305 174 644 187 2889 3272 14134 Guns 4587 | 178 324 146 592 118 . . . . . . . . . 188 1181 513 243 . 174 644 123 . 21 142 Cannons 13361 | . . . 223 . . . . . . 123 . . . . 96 . . 305 . . 64 2889 3251 6410 Explosions 10010 | . . . . 895 . . . . . . . 211 . . 179 118 1025 . . . . . . 7582 Melee 1564 | . . . . . . . . . . 620 394 550 . . . . . . . . . . . . Ramming 392 | . 8 . . . 165 219 . . . . . . . . . . . . . . . . . . Kinetic 2964 | 69 302 146 423 76 . . . . . . . . . 24 928 135 . . 87 428 123 . 21 202 Thermal 21633 | 109 22 . 392 42 . . . . . 123 . . . 164 349 378 243 305 87 216 64 1956 3251 13932 Explosive 2428 | . . . . 895 . . . . . . . 211 . . 179 118 1025 . . . . . . . Electromagnetic 933 | . . . . . . . . . . . . . . . . . . . . . . 933 . . Impact . | . . . . . . . . . . . . . . . . . . . . . . . . . Slashing 1564 | . . . . . . . . . . 620 394 550 . . . . . . . . . . . . Piercing . | . . . . . . . . . . . . . . . . . . . . . . . . . Highest Corruption 16 | . . . . . 5 5 . . . . . . . . 2 2 2 2 3 1 1 7 11 16 Average Corruption 4 | . . . . . 5 4 . . . . . . . . 1 2 2 2 2 1 1 3 8 12 Corruption Purged 6 | . . . . . . 5 . . . . . . . . . . . . . 1 . . . . Corruption Blocked . | . . . . . . . . . . . . . . . . . . . . . . . . . Effects 258 | . . . . . 67 3 . . . . . . . . 10 18 12 6 7 . 2 37 48 48 Message Errors 72 | . . . . . 14 . . . . . . . . . 4 7 4 3 3 . . 9 16 12 Matter Fused 57 | . . . . . 11 . . . . . . . . . 2 4 4 1 1 . 1 13 8 12 Heat Flow Errors 32 | . . . . . 12 1 . . . . . . . . . 2 2 . . . . 3 3 9 Energy Discharges 30 | . . . . . 9 . . . . . . . . . 1 2 1 1 . . 1 6 5 4 Parts Rejected 4 | . . . . . . 1 . . . . . . . . . 1 . . . . . 1 . 1 Parts Fused 5 | . . . . . 1 . . . . . . . . . 2 . . . . . . 1 1 . Data Loss (minor) 26 | . . . . . 9 1 . . . . . . . . 1 2 . . 2 . . 1 8 2 Data Loss (major) 14 | . . . . . 8 . . . . . . . . . . . 1 . . . . . 2 3 Misfires 6 | . . . . . . . . . . . . . . . . . . . 1 . . 2 2 1 Alerts 5 | . . . . . 3 . . . . . . . . . . . . 1 . . . . 1 . Misdirections 3 | . . . . . . . . . . . . . . . . . . . . . . . . 3 Weapon Failures 4 | . . . . . . . . . . . . . . . . . . . . . . 1 2 1 Overload Shots . | . . . . . . . . . . . . . . . . . . . . . . . . . Overflow Damage 1576 | . . . . 12 . 1 . . . 56 57 71 . . . . . . . . . 116 562 701 Projectiles 1105 | . . . . . . . . . . . . . . . . . . . . . . 116 562 427 Explosions 286 | . . . . 12 . . . . . . . . . . . . . . . . . . . 274 Melee 185 | . . . . . . 1 . . . 56 57 71 . . . . . . . . . . . . Knockbacks 3 | . . . . . 2 1 . . . . . . . . . . . . . . . . . . Impact 3 | . . . . . 2 1 . . . . . . . . . . . . . . . . . . Kinetic . | . . . . . . . . . . . . . . . . . . . . . . . . . Secondary . | . . . . . . . . . . . . . . . . . . . . . . . . . Self-Inflicted Damage 52 | . . . . . 52 . . . . . . . . . . . . . . . . . . . Shots . | . . . . . . . . . . . . . . . . . . . . . . . . . Rammed 76 | . 3 . . . 13 60 . . . . . . . . . . . . . . . . . . Targets Rammed 79 | . 3 . . . 13 63 . . . . . . . . . . . . . . . . . . Kicked . | . . . . . . . . . . . . . . . . . . . . . . . . . Crushed 3 | . . . . . . 3 . . . . . . . . . . . . . . . . . . Highest Temperature 819 | 40 80 18 56 164 266 175 . . . 176 68 . . 128 240 237 250 . . . . 355 167 819 Average Temperature 59 | 19 26 9 19 61 110 88 . . . 66 37 . . 53 58 67 68 . . . . 47 59 59 Received Heat Transfer 2579 | . 6 108 18 150 120 18 18 . . 105 . 186 . 81 158 9 51 . 13 56 . 82 13 1387 Effects 5 | . . . . . 2 . . . . . . . . . 2 . . . . . . . . 1 Shutdowns 1 | . . . . . . . . . . . . . . . . . . . . . . . . 1 Energy Bleed 1 | . . . . . . . . . . . . . . . 1 . . . . . . . . . Interference 3 | . . . . . 2 . . . . . . . . . 1 . . . . . . . . . Siege Activations 1 | . . . . . . . . . . . . . . . . . . . . . . . . 1 Total Turns 47 | . . . . . . . . . . . . . . . . . . . . . . . . 47 Longest Duration 47 | . . . . . . . . . . . . . . . . . . . . . . . . 47 Martial Activations . | . . . . . . . . . . . . . . . . . . . . . . . . . Shielding Activations . | . . . . . . . . . . . . . . . . . . . . . . . . . Robots Disrupted . | . . . . . . . . . . . . . . . . . . . . . . . . . Combat Hostiles . | . . . . . . . . . . . . . . . . . . . . . . . . . Robots Corrupted 2 | . . . . . . . . . . . . . . . . . . . . . . 2 . . Combat Hostiles . | . . . . . . . . . . . . . . . . . . . . . . . . . Parts Fried 5 | . . . . . . . . . . . . . . . . . . . . . . 5 . . Impact Corruptions 1 | . . . . . . 1 . . . . . . . . . . . . . . . . . . Robots Melted 9 | . . . . . . . . . . . . . . . . . . . . . . 3 3 3 Combat Hostiles 8 | . . . . . . . . . . . . . . . . . . . . . . 3 2 3 Parts Melted 18 | . . . . 3 . . . . . 1 . . . . . . 1 . . 2 . 5 3 3 Heat Transferred 10500 | 250 50 . 666 30 . . . . . 174 . . . 222 483 518 333 336 111 296 100 1460 1631 3840 Parts Sabotaged . | . . . . . . . . . . . . . . . . . . . . . . . . . Parts Stolen . | . . . . . . . . . . . . . . . . . . . . . . . . . Parts Stripped . | . . . . . . . . . . . . . . . . . . . . . . . . . Power Chain Reactions . | . . . . . . . . . . . . . . . . . . . . . . . . . Alert | -11 -10 -10 -10 -8 -6 -6 -6 -6 -5 -5 -5 -5 -5 -4 -4 -4 -4 -4 -3 -3 -3 -2 -2 -2 ------- Run | Yrd Mat Min Sub Scr Fac Low Low Dat Pro Fac Upp Upp War Pro Fac Upp Upp Zhi Pro Res Tes Res Qua Frg Maximum Alert Level 5 | . . . . . . . . . . 3 . . . . 3 . . . . 2 1 1 1 5 Low Security (%) 69 | 100 100 100 . . 100 . . . . 34 . . . . 10 . . . . 70 . 59 98 76 Level 1 19 | . . . . . . . . . . 23 . . . . 39 . . . . 10 100 40 1 19 Level 2 6 | . . . . . . . . . . 18 . . . . 35 . . . . 18 . . . . Level 3 4 | . . . . . . . . . . 23 . . . . 14 . . . . . . . . . Level 4 . | . . . . . . . . . . . . . . . . . . . . . . . . 3 Level 5 . | . . . . . . . . . . . . . . . . . . . . . . . . . High Security . | . . . . . . . . . . . . . . . . . . . . . . . . . Max Security . | . . . . . . . . . . . . . . . . . . . . . . . . . Peak Influence 1608 | 5 60 50 . . 156 . . . . 861 . . . . 978 . . . . 540 296 343 213 1608 Initial 288 | . . . . . . . . . . 75 . . . . 168 . . . . 36 288 157 150 40 Average 164 | . 9 7 . . 35 . . . . 385 . . . . 450 . . . . 159 250 138 94 171 Influence Increases 11099 | 15 106 50 20 . 607 5 23 . 364 1640 24 332 57 237 1581 313 699 10 209 819 230 1070 571 2117 Destroy 0b10 Robot/C 5160 | . 60 40 20 . 320 . 20 . 240 740 20 220 20 160 640 220 400 . 120 440 120 540 340 480 Destroy 0b10 Robot/NC 355 | 15 10 . . . 15 5 . . . 50 . 10 . 10 55 5 5 10 . 40 5 60 10 50 Destroy Leader 776 | . 14 10 . . 82 . . . 20 132 . 10 . 10 88 20 30 . 30 112 10 98 32 78 Allied During Kill 1873 | . . . . . 66 . 3 . 104 376 4 62 7 42 398 68 264 . 59 189 39 192 . . Successful Hack 202 | . 14 . . . 64 . . . . 32 . . . . . . . . . . . 14 66 12 Disable Machine 465 | . . . . . 30 . . . . 135 . . . . 30 . . . . 15 30 30 45 150 Destroy Structure 1938 | . 8 . . . 30 . . . . 160 . . . . 160 . . . . 8 26 121 78 1347 Advance Influence 150 | . . . . . . . . . . . . . . . 150 . . . . . . . . . Partial Spotted 15 | . . . . . . . . . . . . . . . . . . . . 15 . . . . Lose Combat Pursuer 165 | . . . . . . . . . . 15 . 30 30 15 60 . . . . . . 15 . . Influence Decreases 9603 | 15 106 50 20 . 507 105 23 . 243 928 651 538 18 245 685 760 530 659 155 359 464 1082 766 694 Entered New Map 2087 | . . . . . . 37 . . . 46 309 40 . 39 13 344 92 649 . 18 226 123 118 33 Time Decay 5587 | 15 106 50 20 . 370 35 23 . 173 522 342 406 18 146 482 416 398 10 155 301 238 469 498 394 Lost Part 527 | . . . . . 10 . . . 10 10 . 10 . . 10 . . . . . . 210 . 267 Lost Ally 1102 | . . . . . 127 33 . . 60 200 . 82 . 60 180 . 40 . . 40 . 280 . . Purge Threat 300 | . . . . . . . . . . 150 . . . . . . . . . . . . 150 . Squads Dispatched 52 | . 1 . . . 8 . . . 1 10 . . . . 5 . 1 . . 7 1 9 5 4 Investigation 14 | . . . . . 2 . . . . 6 . . . . 1 . . . . 2 . 2 1 . Extermination 19 | . . . . . 5 . . . . 1 . . . . 2 . . . . 1 1 4 4 1 Reinforcement 11 | . 1 . . . 1 . . . . 1 . . . . 2 . . . . 1 . 3 . 2 Assault 5 | . . . . . . . . . 1 2 . . . . . . 1 . . . . . . 1 Garrison 3 | . . . . . . . . . . . . . . . . . . . . 3 . . . . Intercept . | . . . . . . . . . . . . . . . . . . . . . . . . . Searches Triggered . | . . . . . . . . . . . . . . . . . . . . . . . . . Data Miner Redirects 2 | . . . . . . . . . . 2 . . . . . . . . . . . . . . Construction Impeded 2 | . . . . . . . . . . . . . . . 2 . . . . . . . . . Haulers Reinforced 1 | . . . . . . . . . . . . . . . . . . . . . . 1 . . Active Scanning Responses . | . . . . . . . . . . . . . . . . . . . . . . . . . Cargo Convoy Interrupts . | . . . . . . . . . . . . . . . . . . . . . . . . . Stealth | -11 -10 -10 -10 -8 -6 -6 -6 -6 -5 -5 -5 -5 -5 -4 -4 -4 -4 -4 -3 -3 -3 -2 -2 -2 --------- Run | Yrd Mat Min Sub Scr Fac Low Low Dat Pro Fac Upp Upp War Pro Fac Upp Upp Zhi Pro Res Tes Res Qua Frg Distress Signals 13 | . 1 . . . 1 . . . . 1 . . 1 . 3 . . . . 2 . 2 1 1 Communications Jammed 114 | . . . . . . . . . . . . . . . 2 . . . . 72 1 39 . . Distress Signals 114 | . . . . . . . . . . . . . . . 2 . . . . 72 1 39 . . Times Spotted 398 | . 13 2 11 16 29 8 3 . 14 31 . 22 8 13 52 15 20 . 5 33 4 48 19 32 Peak Tracking Total 7 | . 4 2 3 7 4 4 2 . 5 5 . 6 7 4 7 4 7 . 3 5 3 5 3 6 Tactical Retreats 7 | . . . . . . . . . . 1 . 1 1 1 2 . . . . . . 1 . . Traps | -11 -10 -10 -10 -8 -6 -6 -6 -6 -5 -5 -5 -5 -5 -4 -4 -4 -4 -4 -3 -3 -3 -2 -2 -2 ------- Run | Yrd Mat Min Sub Scr Fac Low Low Dat Pro Fac Upp Upp War Pro Fac Upp Upp Zhi Pro Res Tes Res Qua Frg Traps Triggered 12 | . . . 1 . . . . . . 3 . . . . . . . . . 3 . . . 5 Indirectly . | . . . . . . . . . . . . . . . . . . . . . . . . . Trap Hack Attempts . | . . . . . . . . . . . . . . . . . . . . . . . . . Triggered . | . . . . . . . . . . . . . . . . . . . . . . . . . Disarmed . | . . . . . . . . . . . . . . . . . . . . . . . . . Reprogrammed . | . . . . . . . . . . . . . . . . . . . . . . . . . Reused . | . . . . . . . . . . . . . . . . . . . . . . . . . Traps Extracted . | . . . . . . . . . . . . . . . . . . . . . . . . . Installed . | . . . . . . . . . . . . . . . . . . . . . . . . . Triggered . | . . . . . . . . . . . . . . . . . . . . . . . . . Machines | -11 -10 -10 -10 -8 -6 -6 -6 -6 -5 -5 -5 -5 -5 -4 -4 -4 -4 -4 -3 -3 -3 -2 -2 -2 ---------- Run | Yrd Mat Min Sub Scr Fac Low Low Dat Pro Fac Upp Upp War Pro Fac Upp Upp Zhi Pro Res Tes Res Qua Frg Machines Disabled 40 | . . . . 1 2 . . . . 9 . 1 . . 2 . . . . 1 2 3 4 15 Max in Single Turn 12 | . . . . 1 1 . . . . 1 . . . . 2 . . . . . 1 1 1 12 Garrison Access 4 | . . . . . . . . . . 2 . . . . 1 . . . . . 1 . . . Machines Repaired . | . . . . . . . . . . . . . . . . . . . . . . . . . Machines Dismantled . | . . . . . . . . . . . . . . . . . . . . . . . . . Machines Sabotaged . | . . . . . . . . . . . . . . . . . . . . . . . . . Overloaded Fab Kills . | . . . . . . . . . . . . . . . . . . . . . . . . . Hacking | -11 -10 -10 -10 -8 -6 -6 -6 -6 -5 -5 -5 -5 -5 -4 -4 -4 -4 -4 -3 -3 -3 -2 -2 -2 --------- Run | Yrd Mat Min Sub Scr Fac Low Low Dat Pro Fac Upp Upp War Pro Fac Upp Upp Zhi Pro Res Tes Res Qua Frg Machines Accessed 88 | . 2 . 1 9 13 . 2 4 . 17 1 . 1 . 4 3 . 5 . 5 3 3 9 6 Terminals 28 | . 2 . . . 5 . . . . 7 . . . . 1 1 . . . 2 2 1 5 2 Fabricators 9 | . . . . . 4 . . . . 1 . . . . 1 . . . . . . 1 . 2 Repair Stations 5 | . . . . . . . . . . 2 . . . . . . . . . . . . 2 1 Recycling Units 11 | . . . . . 2 . . . . 5 . . . . 1 . . . . 2 . 1 . . Scanalyzers 4 | . . . . . 1 . . . . . . . . . . . . . . . . . 2 1 Garrison Access 6 | . . . . . 1 . . . . 2 . . . . 1 . . . . 1 1 . . . Total Hacks 297 | . 5 . 9 55 32 . 2 28 . 46 1 . 1 . 19 8 . 17 . 15 10 6 35 8 Successful 199 | . 2 . 9 55 15 . 2 28 . 26 1 . 1 . 8 8 . 17 . 3 3 3 17 1 Failed 97 | . 3 . . . 17 . . . . 20 . . . . 11 . . . . 12 7 3 18 6 Catastrophic 10 | . . . . . 2 . . . . 2 . . . . 1 . . . . 2 . 2 . 1 Database Lockouts 1 | . . . . . . . . . . . . . . . . . . . . . . . . 1 Manual 80 | . 3 . . . 20 . . . . 23 . . 1 . 11 . . . . 5 5 1 8 3 Terminals 89 | . 5 . . . 14 . . . . 26 . . . . 7 1 . . . 4 8 2 19 3 Fabricators 23 | . . . . . 10 . . . . 5 . . . . 5 . . . . . . 1 . 2 Repair Stations 14 | . . . . . . . . . . 4 . . . . . . . . . . . . 9 1 Recycling Units 25 | . . . . . 3 . . . . 8 . . . . 2 . . . . 9 . 3 . . Scanalyzers 12 | . . . . . 3 . . . . . . . . . . . . . . . . . 7 2 Garrison Access 14 | . . . . . 2 . . . . 3 . . . . 5 . . . . 2 2 . . . Terminal Hacks 149 | . 1 . 9 55 3 . 2 28 . 12 1 . 1 . 3 8 . 17 . 1 1 1 6 . Record 86 | . . . 8 53 . . 1 11 . . . . . . . 7 . 6 . . . . . . Part Schematic 15 | . . . . . . . . 10 . 1 . . . . . . . 3 . . . . 1 . Robot Schematic 4 | . . . . . . . . 4 . . . . . . . . . . . . . . . . Robot Analysis 6 | . . . . . . . . . . 2 . . . . . . . 4 . . . . . . Prototype ID Bank 9 | . 1 . . . . . . 3 . . . . . . . . . 4 . . 1 . . . Open Door 7 | . . . . 1 1 . 1 . . . 1 . 1 . . 1 . . . . . . 1 . Open DSF 1 | . . . . . . . . . . . . . . . . . . . . 1 . . . . Branch Access Points 3 | . . . . . . . . . . 1 . . . . . . . . . . . 1 1 . Emergency Access Points 1 | . . . . . . . . . . 1 . . . . . . . . . . . . . . Terminal Index 1 | . . . . . . . . . . . . . . . 1 . . . . . . . . . Recycling Unit Index 1 | . . . . . . . . . . . . . . . 1 . . . . . . . . . Unreport Threat 2 | . . . . . . . . . . 1 . . . . . . . . . . . . 1 . Locate Traps 6 | . . . . . 1 . . . . 4 . . . . . . . . . . . . 1 . Dispatch Records 1 | . . . . . . . . . . . . . . . . . . . . . . . 1 . Maintenance Status 2 | . . . . . . . . . . 1 . . . . 1 . . . . . . . . . Recall Investigation 1 | . . . . . 1 . . . . . . . . . . . . . . . . . . . Registered Components 1 | . . . . . . . . . . 1 . . . . . . . . . . . . . . Proto ID Catalog 2 | . . . 1 1 . . . . . . . . . . . . . . . . . . . . Fabricator Hacks 4 | . . . . . 2 . . . . 1 . . . . 1 . . . . . . . . . Network Status 3 | . . . . . 1 . . . . 1 . . . . 1 . . . . . . . . . Build 1 | . . . . . 1 . . . . . . . . . . . . . . . . . . . Repair Station Hacks 5 | . . . . . . . . . . 1 . . . . . . . . . . . . 4 . Scan Component 3 | . . . . . . . . . . 1 . . . . . . . . . . . . 2 . Repair 2 | . . . . . . . . . . . . . . . . . . . . . . . 2 . Recycling Unit Hacks 4 | . . . . . 1 . . . . 1 . . . . . . . . . 1 . 1 . . Retrieve Matter 2 | . . . . . 1 . . . . 1 . . . . . . . . . . . . . . Retrieve Components 2 | . . . . . . . . . . . . . . . . . . . . 1 . 1 . . Scanalyzer 7 | . . . . . 3 . . . . . . . . . . . . . . . . . 3 1 Retrieve Study 7 | . . . . . 3 . . . . . . . . . . . . . . . . . 3 1 Garrison Access Hacks 4 | . . . . . . . . . . 2 . . . . 1 . . . . . 1 . . . Seal Access 4 | . . . . . . . . . . 2 . . . . 1 . . . . . 1 . . . Unauthorized Hacks 26 | . 1 . . . 6 . . . . 9 . . . . 3 . . . . 1 1 1 4 . Terminals 14 | . 1 . . . 3 . . . . 3 . . . . 3 . . . . . 1 . 3 . Track 1 | . . . . . . . . . . . . . . . 1 . . . . . . . . . Assimilate 1 | . . . . . 1 . . . . . . . . . . . . . . . . . . . Botnet 9 | . 1 . . . 2 . . . . 2 . . . . 1 . . . . . 1 . 2 . Operators 3 | . . . . . . . . . . 1 . . . . 1 . . . . . . . 1 . Fabricators 2 | . . . . . 1 . . . . 1 . . . . . . . . . . . . . . Fabnet 2 | . . . . . 1 . . . . 1 . . . . . . . . . . . . . . Repair Stations . | . . . . . . . . . . . . . . . . . . . . . . . . . Recycling Units 9 | . . . . . 2 . . . . 5 . . . . . . . . . 1 . 1 . . Fedlink 9 | . . . . . 2 . . . . 5 . . . . . . . . . 1 . 1 . . Scanalyzers 1 | . . . . . . . . . . . . . . . . . . . . . . . 1 . Researchers 1 | . . . . . . . . . . . . . . . . . . . . . . . 1 . Garrison Access . | . . . . . . . . . . . . . . . . . . . . . . . . . Data Cores Recovered 1 | . . . . . . . . . . 1 . . . . . . . . . . . . . . Used 1 | . . . . . . . . . . 1 . . . . . . . . . . . . . . Hacking Detections 46 | . 2 . . . 11 . . . . 11 . . . . 3 . . . . 3 2 2 6 6 Full Trace Events 5 | . 1 . . . . . . . . 1 . . . . 1 . . . . 1 . . 1 . Feedback Events 1 | . . . . . . . . . . . . . . . . . . . . 1 . . . . Corruption 1 | . . . . . . . . . . . . . . . . . . . . 1 . . . . Feedback Blocked . | . . . . . . . . . . . . . . . . . . . . . . . . . Robot Schematics Acquired 6 | . . . . . . . . 4 . . . . . . . . . . . . . . 2 . Robots Built . | . . . . . . . . . . . . . . . . . . . . . . . . . Authchips . | . . . . . . . . . . . . . . . . . . . . . . . . . Time . | . . . . . . . . . . . . . . . . . . . . . . . . . Total Robot Build Rating . | . . . . . . . . . . . . . . . . . . . . . . . . . Part Schematics Acquired 19 | . . . . . . . . 10 . 1 . . . . . . . 3 . . . . 5 . Parts Built 2 | . . . . . 2 . . . . . . . . . . . . . . . . . . . Authchips . | . . . . . . . . . . . . . . . . . . . . . . . . . Time 106 | . . . . . 106 . . . . . . . . . . . . . . . . . . . Total Part Build Rating 12 | . . . . . 12 . . . . . . . . . . . . . . . . . . . Part Studies Acquired 7 | . . . . . 3 . . . . . . . . . . . . . . . . . 3 1 Parts Repaired 2 | . . . . . . . . . . . . . . . . . . . . . . . 2 . Time 114 | . . . . . . . . . . . . . . . . . . . . . . . 114 . Parts Recycled . | . . . . . . . . . . . . . . . . . . . . . . . . . Recycled Matter . | . . . . . . . . . . . . . . . . . . . . . . . . . Retrieved Matter . | . . . . . . . . . . . . . . . . . . . . . . . . . Retrieved Components 20 | . . . . . . . . . . . . . . . . . . . . 10 . 10 . . Parts Scanalyzed . | . . . . . . . . . . . . . . . . . . . . . . . . . Part Schematics Acquired . | . . . . . . . . . . . . . . . . . . . . . . . . . Parts Damaged . | . . . . . . . . . . . . . . . . . . . . . . . . . Bothacking | -11 -10 -10 -10 -8 -6 -6 -6 -6 -5 -5 -5 -5 -5 -4 -4 -4 -4 -4 -3 -3 -3 -2 -2 -2 ------------ Run | Yrd Mat Min Sub Scr Fac Low Low Dat Pro Fac Upp Upp War Pro Fac Upp Upp Zhi Pro Res Tes Res Qua Frg Used RIF Installer . | . . . . . . . . . . . . . . . . . . . . . . . . . Robots Hacked 5 | . . . . . . . . . . . . . 2 1 1 . 1 . . . . . . . Non-combat . | . . . . . . . . . . . . . . . . . . . . . . . . . Combat 5 | . . . . . . . . . . . . . 2 1 1 . 1 . . . . . . . Robot Hacks Applied . | . . . . . . . . . . . . . . . . . . . . . . . . . Relay Couplers Released 12 | . . . . . 4 . . . . 4 . . . . . . . . . 4 . . . . Programmers 12 | . . . . . 4 . . . . 4 . . . . . . . . . 4 . . . . Fabnet Peak Effective % 4 | . . . . . . . . . 3 3 3 3 3 4 4 4 4 4 1 1 1 . . . Autooverrided 5 | . . . . . . . . . . . . . 2 1 1 . 1 . . . . . . . Robots Rewired 5 | . . . . . . . . . 2 . . . . 1 . . 2 . . . . . . . Allies Hacked 5 | . . . . . . . . . . . . . . . 2 . 1 . 1 . . 1 . . Hacks Repelled 2 | . . . . . . . . . . . . . . . . . . . . 1 1 . . . Allies | -11 -10 -10 -10 -8 -6 -6 -6 -6 -5 -5 -5 -5 -5 -4 -4 -4 -4 -4 -3 -3 -3 -2 -2 -2 -------- Run | Yrd Mat Min Sub Scr Fac Low Low Dat Pro Fac Upp Upp War Pro Fac Upp Upp Zhi Pro Res Tes Res Qua Frg Total Allies 13 | . . . . . 1 . . . 2 . . . 2 2 1 . 3 . . . . 2 . . Largest Group 3 | . . . . . 1 . . . 2 2 . . 1 1 2 . 3 2 2 . . 2 . . Highest-Rated Group 151 | . . . . . 26 . . . 59 59 . . 29 47 111 . 148 94 94 . . 151 . . Highest-Rated Ally 82 | . . . . . 26 . . . 30 30 . . 29 47 64 . 54 47 47 . . 82 . . Initial UFD Resources 86 | . . . . . 23 37 37 37 39 39 59 59 59 61 61 61 61 61 64 64 74 76 86 86 Total Orders 36 | . . . . . . . . . 2 4 2 3 2 . . . 8 2 . 3 4 6 . . STAY 20 | . . . . . . . . . 1 3 1 2 1 . . . 6 1 . . 2 3 . . FOLLOW 13 | . . . . . . . . . 1 1 1 1 1 . . . 2 1 . . 2 3 . . RETURN 3 | . . . . . . . . . . . . . . . . . . . . 3 . . . . Ally Attacks 1054 | . . . . . 77 9 12 . 68 223 3 61 11 36 131 38 87 . 48 107 37 106 . . Total Damage 34253 | . . . . . 2366 78 229 . 1910 6395 92 1856 338 1136 4780 1057 2582 . 1604 4029 1216 4585 . . Kills 207 | . . . . . 19 . 1 . 13 39 1 12 1 9 31 9 16 . 6 24 6 20 . . Allies Corrupted 16 | . . . . . . . . . . 3 . . 1 . . . . . 1 3 . 8 . . Allies Melted 7 | . . . . 2 1 1 . . . 1 . 1 1 . . . . . . . . . . . Borg Created 83 | . . . . . 15 4 4 . 6 9 . 8 1 5 7 4 2 . 1 3 . 14 . . Largest Collective 5 | . . . . . 3 2 2 . 5 5 . 5 4 3 5 4 5 . 4 3 . 4 . . Intel | -11 -10 -10 -10 -8 -6 -6 -6 -6 -5 -5 -5 -5 -5 -4 -4 -4 -4 -4 -3 -3 -3 -2 -2 -2 ------- Run | Yrd Mat Min Sub Scr Fac Low Low Dat Pro Fac Upp Upp War Pro Fac Upp Upp Zhi Pro Res Tes Res Qua Frg Active Infowar (turns) 22564 | 58 610 127 879 2386 2295 1936 1112 112 749 965 771 1589 745 771 942 728 859 158 531 678 508 1732 1060 263 Optics 1791 | . . . . . . 1791 . . . . . . . . . . . . . . . . . . Sensors 14187 | . . 1 131 . 2224 1798 1112 112 749 488 654 1411 147 564 692 358 772 . 291 322 450 946 713 252 Terrain 81 | 47 33 . . . . . . . . . . 1 . . . . . . . . . . . . Structural 4926 | . . . . 684 684 168 474 70 . 189 117 47 598 . 193 75 1 . 9 147 132 491 602 245 Seismic 6617 | 11 577 126 748 1702 113 . . . . . . . . . . . . . . 161 508 1353 1055 263 Machine Analysis 11 | . . . . . 9 . . . . . . . . . . . . . . . . . 2 . Jamming 3022 | . . . . . . . . . . 309 . 130 . 207 275 295 86 158 231 400 39 892 . . Robot Analysis Total 6 | . . . . . . . . . . 2 . . . . . . . 4 . . . . . . Derelict Logs Recovered 19 | . . 1 2 5 . 2 2 . 2 . 1 2 . 1 . . 1 . . . . . . . Drone Launches 3 | . . . . . . . . . . . . . . . . . . . . 3 . . . . Drone Recoveries 3 | . . . . . . . . . . . . . . . . . . . . 3 . . . . Exploration | -11 -10 -10 -10 -8 -6 -6 -6 -6 -5 -5 -5 -5 -5 -4 -4 -4 -4 -4 -3 -3 -3 -2 -2 -2 ------------- Run | Yrd Mat Min Sub Scr Fac Low Low Dat Pro Fac Upp Upp War Pro Fac Upp Upp Zhi Pro Res Tes Res Qua Frg Turns Passed 29573 | 123 612 335 1669 3763 3101 2071 1227 112 1089 1447 773 1621 877 828 1243 1004 956 361 622 762 508 1913 1520 1036 Spaces Moved 17239 | 45 260 177 1088 2541 1595 562 950 101 678 1021 538 772 534 429 666 728 728 276 411 511 343 817 906 562 Core 272 | . . . . 252 . . . . . . . . . . . . . . . . . 1 . 19 Treads 1325 | 45 260 177 297 . 546 . . . . . . . . . . . . . . . . . . . Legs . | . . . . . . . . . . . . . . . . . . . . . . . . . Wheels 15629 | . . . 791 2289 1049 562 950 101 678 1021 538 772 534 429 666 728 728 276 411 511 343 816 906 530 Hover . | . . . . . . . . . . . . . . . . . . . . . . . . . Flight 13 | . . . . . . . . . . . . . . . . . . . . . . . . 13 Fastest Speed 22 | 160 160 160 107 50 105 105 105 105 120 120 125 125 150 150 114 114 114 114 114 114 114 85 119 22 Average Speed 132 | 160 160 160 127 144 157 108 113 110 120 121 135 143 150 158 142 117 114 114 114 114 121 134 120 117 Slowest Speed 250 | 160 160 160 160 170 245 135 120 120 120 150 150 150 165 165 165 130 114 114 137 114 131 250 140 180 Overloaded Moves 13 | . . . . . . . . . . . . . . . . . . . . . . . . 13 Propulsion Burnouts . | . . . . . . . . . . . . . . . . . . . . . . . . . Robots Hopped . | . . . . . . . . . . . . . . . . . . . . . . . . . Potential Cave-ins 2 | . . . . . . . . . . . . . . . . . 2 . . . . . . . Cave-ins Triggered . | . . . . . . . . . . . . . . . . . . . . . . . . . Teleports 1 | . . . . . . . . . . . . . . . . . . . . . . . . 1 Exploration Rate (%) 52 | 5 42 34 51 92 34 78 73 75 79 34 78 75 67 65 17 75 74 60 57 16 31 17 56 34 Regions Visited 24 Branch Regions 18 Pre-discovered Areas 13 | . . 1 . 6 1 1 . 1 . . . . . . . . . 3 . . . . . . Known Exits Taken 14 | . . . . . 1 1 1 1 1 1 1 1 1 1 . . . . 1 1 . 1 1 . Unknown Exits Taken 10 | 1 1 1 1 1 . . . . . . . . . . 1 1 1 1 . . 1 . . . Scrap Searched 30 | . . . . 6 . 2 1 . 3 . 3 3 . . . 6 4 . 2 . . . . . Spaces Dug 77 | . 8 . . . . . . . . 8 2 17 . . 7 . . . . . 1 16 15 3 Terrain Destroyed 840 | . 8 . 1 63 . . . . . 10 4 23 . 4 100 9 29 . . 4 8 40 26 511 Melee 12 | . . . . . . . . . . 3 2 7 . . . . . . . . . . . . Projectile 159 | . 8 . 1 1 . . . . . 7 2 . . 4 39 . . . . 4 8 40 26 19 AOE 669 | . . . . 62 . . . . . . . 16 . . 61 9 29 . . . . . . 492 Terrain Rammed 1 | . . . . . 1 . . . . . . . . . . . . . . . . . . . Walls Destroyed . | . . . . . . . . . . . . . . . . . . . . . . . . . Machines Disabled 1 | . . . . . 1 . . . . . . . . . . . . . . . . . . . Actions | -11 -10 -10 -10 -8 -6 -6 -6 -6 -5 -5 -5 -5 -5 -4 -4 -4 -4 -4 -3 -3 -3 -2 -2 -2 --------- Run | Yrd Mat Min Sub Scr Fac Low Low Dat Pro Fac Upp Upp War Pro Fac Upp Upp Zhi Pro Res Tes Res Qua Frg Total 23036 | 74 376 207 1263 2626 2126 1891 1091 101 939 1172 565 1238 604 543 857 834 823 319 553 643 419 1524 1330 918 Wait 3754 | 1 34 8 46 8 419 1227 124 . 180 58 3 409 33 78 75 61 39 4 115 60 20 422 261 69 Move 17215 | 44 259 176 1087 2540 1594 561 949 100 677 1020 537 771 533 428 665 727 727 275 410 510 342 816 905 562 Hop . | . . . . . . . . . . . . . . . . . . . . . . . . . Pick Up 212 | 4 8 4 22 27 20 7 2 . 2 12 3 3 4 3 12 2 3 7 3 6 3 28 16 11 Fast Attach 152 | 1 3 2 2 12 4 5 . . 1 4 . 4 12 . 2 3 2 7 5 6 14 30 13 20 Attach 96 | 3 1 . 11 . 13 3 1 . . 5 . . 1 1 6 . . 3 . 4 . 26 5 13 Detach 43 | 3 1 1 . 2 7 1 1 . . 2 . . . . 2 . . 1 . 1 3 16 1 1 Swap 308 | 1 9 4 21 9 21 4 9 1 7 20 12 15 5 3 27 12 14 . 6 5 9 34 31 29 Drop 268 | 2 13 1 14 19 17 12 1 . 3 13 1 7 15 3 12 4 5 13 9 11 18 23 30 22 Fire 618 | 15 45 11 60 9 . . . . . 11 2 2 . 9 47 21 21 9 3 20 10 104 68 151 Melee 40 | . . . . . . . . . . 16 7 17 . . . . . . . . . . . . Ram 3 | . . . . . 3 . . . . . . . . . . . . . . . . . . . Kick . | . . . . . . . . . . . . . . . . . . . . . . . . . Crush 77 | . 3 . . . 11 63 . . . . . . . . . . . . . . . . . . Escape Stasis 56 | . . . . . . . . . . . . . . . . . . . . 16 . . . 40 Rewire 90 | . . . . . 2 4 . . 63 2 . 1 . 7 1 . 10 . . . . . . . Trap . | . . . . . . . . . . . . . . . . . . . . . . . . . Miscellaneous 104 | . . . . . 15 4 4 . 6 9 . 9 1 11 8 4 2 . 2 4 . 25 . . Route ------- -11/Scrapyard -10/Materials (discovered 2 exits: *Mat / [*Min]) -10/Mines -10/Subcaves (discovered 2 exits: [*Mat] / *Scr) -8/Scraptown (discovered 2 exits: *Fac x2) -6/Factory (discovered 5 exits: *Fac x3 / *Low / [*Ext]) -6/Lower Caves -6/Lower Caves (discovered 2 exits: *Fac / *Dat) -6/Data Miner -5/Proximity Caves -5/Factory (discovered 4 exits: *Fac x2 / *Upp x2) -5/Upper Caves -5/Upper Caves (discovered 2 exits: *Fac / *War) -5/Warlord -4/Proximity Caves -4/Factory (discovered 4 exits: Res x2 / *Upp / [*Arm]) -4/Upper Caves -4/Upper Caves (discovered 2 exits: *Res / *Zhi) -4/Zhirov -3/Proximity Caves -3/Research (discovered 2 exits: *Tes x2) -3/Testing -2/Research (discovered 3 exits: Acc / *Qua x2) -2/Quarantine (discovered 2 exits: *Sec / *Frg) -2/Protoforge History --------- Turn | Location | Event 26 | -11/Scrapyard | Discovered new exit (range 3) 124 | -11/Scrapyard | Entered Materials 307 | -10/Materials | Build established: Mutant 494 | -10/Materials | Discovered new exit (range 16) 542 | -10/Materials | Identified exit to Materials 724 | -10/Materials | Discovered new exit (range 6) 736 | -10/Materials | Entered Mines 894 | -10/Mines | Received a Rocket Launcher from a helpful Derelict 903 | -10/Mines | Learned location of Storage (-8) 915 | -10/Mines | Learned Materials emergency access door positions 1032 | -10/Mines | Discovered new exit (range 8) 1037 | -10/Mines | Found a damaged Exp. Sensor Array with a note attached 1040 | -10/Mines | Found Prototype Device 1041 | -10/Mines | Identified Exp. Sensor Array 1071 | -10/Mines | Entered Subcaves 1072 | -10/Subcaves | Approached by a straggling Scientist 1113 | -10/Subcaves | Learned 2 Materials zone layouts 1245 | -10/Subcaves | Lost 3 parts (2p1w) 1504 | -10/Subcaves | Learned Materials terminal intel 1611 | -10/Subcaves | A Subdweller sparked back to life 1611 | -10/Subcaves | A Subdweller sparked back to life 1611 | -10/Subcaves | A Subdweller sparked back to life 1657 | -10/Subcaves | Lost 3 parts (1p1n1w) 1677 | -10/Subcaves | Core integrity fell below 50% 1685 | -10/Subcaves | Found Prototype Leg 1911 | -10/Subcaves | Build established: Scavenger-Mutant 2248 | -10/Subcaves | Discovered new exit (range 4) 2292 | -10/Subcaves | Visited 4L-MR0's lab 2300 | -10/Subcaves | Found Prototype Special Melee Weapon 2740 | -10/Subcaves | Entered Scraptown 2798 | -8/Scraptown | Visited Cave Peace 2833 | -8/Scraptown | Visited Shadow of the Wyrm 2889 | -8/Scraptown | Visited IN-MT5's Study 2951 | -8/Scraptown | Scanned Subdweller tech in exchange for log data 2954 | -8/Scraptown | Learned location of Quarantine (-2) 2955 | -8/Scraptown | Learned location of 1 exit from Factory 2957 | -8/Scraptown | Learned location of Testing (-3) 2958 | -8/Scraptown | Learned Research security intel 2960 | -8/Scraptown | Learned location of Zion (-7) 3395 | -8/Scraptown | Visited Fellowship of the Rings 3458 | -8/Scraptown | Visited UFD Registry 3482 | -8/Scraptown | Visited The Evicted 3525 | -8/Scraptown | Visited Cyclists 3565 | -8/Scraptown | Visited Assassins FH 3580 | -8/Scraptown | Build established: Mutant 3627 | -8/Scraptown | Registered with UFD as "Metadriver" 3712 | -8/Scraptown | Entered Cyclist Reading Room 3791 | -8/Scraptown | Visited Science Guys 3859 | -8/Scraptown | Visited A0-MCA Data Center 3919 | -8/Scraptown | Visited Chapter 10 4023 | -8/Scraptown | Delivered Scrap Shield to a Scientist 4121 | -8/Scraptown | Visited DA-N13 Charitable Foundation 4138 | -8/Scraptown | Found DCF Scrap (28 items) 4167 | -8/Scraptown | Visited Junk Repository 4225 | -8/Scraptown | Visited Scrapoid Pod Storage 4257 | -8/Scraptown | Visited Sword Containment 4276 | -8/Scraptown | Found Prototype Slashing Weapon 4323 | -8/Scraptown | Visited Curators Association 4410 | -8/Scraptown | Visited Cartography Club 4442 | -8/Scraptown | Released all parts (6) 4526 | -8/Scraptown | Learned 8 Materials zone layouts 4526 | -8/Scraptown | Learned 16 Materials zone layouts 4526 | -8/Scraptown | Learned 4 Access zone layouts 4526 | -8/Scraptown | Learned 16 Lower Caves zone layouts 4526 | -8/Scraptown | Learned 12 Proximity Caves zone layouts 4526 | -8/Scraptown | Learned location of 1 exit from Factory 4526 | -8/Scraptown | Learned location of 1 exit from Lower Caves 4526 | -8/Scraptown | Learned location of 1 exit from Proximity Caves 4542 | -8/Scraptown | Found Deep Structural Scanner 4771 | -8/Scraptown | Discovered new exit (range 10) 5223 | -8/Scraptown | Given a B- rating by A0-MCA 5227 | -8/Scraptown | Found A0-MCA's Component Scanner 5228 | -8/Scraptown | Identified 1B-0RG's Assimilator 5597 | -8/Scraptown | Discovered new exit (range 11) 6317 | -8/Scraptown | Met Optimus 6317 | -8/Scraptown | Accepted into 0bPrime 6396 | -8/Scraptown | Civil war broke out across Scraptown 6454 | -8/Scraptown | Core integrity fell below 20% 6502 | -8/Scraptown | Destroyed 9 combat bots 6503 | -8/Scraptown | Entered Factory 6503 | -6/Factory | Evolved 8 slots: Propulsion x2, Utility x3, Weapon x3 6504 | -6/Factory | Identified exit to Factory 6506 | -6/Factory | Lost 19 allies 6622 | -6/Factory | Assimilating Soldier 5a into Collective. 6635 | -6/Factory | Assimilating Soldier 5b into Collective. 6641 | -6/Factory | Assimilating Veteran 5a into Collective. 6646 | -6/Factory | Assimilating Soldier 5c into Collective. 6772 | -6/Factory | Assimilating Serf 5a into Collective. 6782 | -6/Factory | Build established: Derelict-Mutant 6942 | -6/Factory | Assimilating Soldier 5d into Collective. 6948 | -6/Factory | Assimilating Soldier 5e into Collective. 6957 | -6/Factory | Assimilating Virus 5a into Collective. 6972 | -6/Factory | Assimilating Soldier 5f into Collective. 7002 | -6/Factory | Lost 5 allies 7138 | -6/Factory | Assimilating Hacker 5a into Collective. 7207 | -6/Factory | Assimilating Guardian 5a into Collective. 7534 | -6/Factory | Discovered exit to Factory (range 17) 8207 | -6/Factory | Build established: Mutant 8302 | -6/Factory | Assimilating Hacker 5b into Collective. 8797 | -6/Factory | Spotted B-75 Beast 8813 | -6/Factory | Assimilating Beast 5a into Collective. 8883 | -6/Factory | Assimilating Informer 5a into Collective. 9078 | -6/Factory | Loaded intel: 8 recycling unit locations 9103 | -6/Factory | Learned location of Protoforge (-2) 9232 | -6/Factory | Build established: Assassin 9262 | -6/Factory | Discovered new exit (range 18) 9266 | -6/Factory | Fabricated Imp. Arc Projector? 9303 | -6/Factory | Identified exit to Lower Caves 9316 | -6/Factory | Assimilating Administrator 5b into Collective. 9363 | -6/Factory | Discovered new exit (range 10) 9604 | -6/Factory | Entered Lower Caves 9604 | -6/Lower Caves | Accompanied by 1 ally 9605 | -6/Lower Caves | Identified exit to Lower Caves 9606 | -6/Lower Caves | UFD Scientist delivered a prototype 9613 | -6/Lower Caves | Found Prototype Protection 9657 | -6/Lower Caves | Ambushed by wild Derelicts 9659 | -6/Lower Caves | Assimilating UA-QXA(g) into Collective. 9662 | -6/Lower Caves | Assimilating 89-GCH(l) into Collective. 9704 | -6/Lower Caves | Assimilating CD-XD4(l) into Collective. 9709 | -6/Lower Caves | Assimilating 79-2RQ(l) into Collective. 9737 | -6/Lower Caves | Lost 4 allies 9878 | -6/Lower Caves | Learned Factory interactive machine intel 11675 | -6/Lower Caves | Entered another Lower Caves area 11704 | -6/Lower Caves | Discovered exit to Factory (range 14) 11906 | -6/Lower Caves | Entered a destroyed Warlord outpost 11954 | -6/Lower Caves | Assimilating LF-GW7(r) into Collective. 12108 | -6/Lower Caves | Assimilating Soldier 5g into Collective. 12112 | -6/Lower Caves | Assimilating Soldier 5h into Collective. 12157 | -6/Lower Caves | Identified exit to Data Miner 12162 | -6/Lower Caves | Attracted the attention of an 0b10 checkpoint 12172 | -6/Lower Caves | Assimilating Guardian 5b into Collective. 12324 | -6/Lower Caves | Build established: Mutant 12902 | -6/Lower Caves | Entered Data Miner 12902 | -6/Data Miner | Accompanied by 2 allies 12902 | -6/Data Miner | Discovered new exit (range 6) 12925 | -6/Data Miner | Met Data Miner 12948 | -6/Data Miner | Learned location of Section 7 (-2) 12948 | -6/Data Miner | Acquired the access code to Warlord's prototype stash 12968 | -6/Data Miner | Received God Mode back door access code from Data Miner 13013 | -6/Data Miner | Identified exit to Proximity Caves 13014 | -6/Data Miner | Entered Proximity Caves 13014 | -5/Proximity Caves | Accompanied by 2 allies 13016 | -5/Proximity Caves | Attracted the attention of an 0b10 checkpoint 13019 | -5/Proximity Caves | Assimilating Warrior 6a into Collective. 13024 | -5/Proximity Caves | Assimilating Fighter 6a into Collective. 13035 | -5/Proximity Caves | Learned Factory emergency access door positions 13708 | -5/Proximity Caves | Assimilating Veteran 6a into Collective. 13788 | -5/Proximity Caves | Attracted the attention of an 0b10 outpost 13789 | -5/Proximity Caves | Assimilating Warrior 6b into Collective. 13797 | -5/Proximity Caves | Assimilating Warden 6a into Collective. 13984 | -5/Proximity Caves | Assimilating Warrior 6d into Collective. 14103 | -5/Proximity Caves | Entered Factory 14103 | -5/Factory | Accompanied by 6 allies 14103 | -5/Factory | Evolved 2 slots: Utility x1, Weapon x1 14104 | -5/Factory | Identified exit to Upper Caves 14106 | -5/Factory | Loaded intel: 53 interactive machine locations 14263 | -5/Factory | Loaded intel: 8 recycling unit locations 14352 | -5/Factory | Assimilating Sentinel 6a into Collective. 14536 | -5/Factory | Build established: Hacker-Mutant 14577 | -5/Factory | Assimilating Sentinel 6b into Collective. 14838 | -5/Factory | Assimilating Sentinel 6c into Collective. 15004 | -5/Factory | Assimilating Sentinel 6d into Collective. 15078 | -5/Factory | Assimilating Slayer 6a into Collective. 15091 | -5/Factory | Assimilating Slayer 6b into Collective. 15202 | -5/Factory | Discovered new exit (range 10) 15303 | -5/Factory | First assault squad dispatched 15319 | -5/Factory | Incoming assault squad redirected 15333 | -5/Factory | Incoming assault squad redirected 15380 | -5/Factory | Discovered new exit (range 8) 15388 | -5/Factory | Identified exit to Factory 15443 | -5/Factory | Assimilating Sage 6a into Collective. 15460 | -5/Factory | Assimilating Sage 6b into Collective. 15512 | -5/Factory | Assimilating Soldier 6b into Collective. 15550 | -5/Factory | Entered Upper Caves 15550 | -5/Upper Caves | Accompanied by 2 allies 15651 | -5/Upper Caves | Learned location of 1 exit from Proximity Caves 16168 | -5/Upper Caves | Discovered new exit (range 13) 16200 | -5/Upper Caves | Identified exit to Upper Caves 16323 | -5/Upper Caves | Entered another Upper Caves area 16323 | -5/Upper Caves | Accompanied by 2 allies 16916 | -5/Upper Caves | Assimilating Soldier 6c into Collective. 16923 | -5/Upper Caves | Assimilating Veteran 6b into Collective. 16949 | -5/Upper Caves | Discovered exit to Factory (range 11) 16966 | -5/Upper Caves | Attracted the attention of an 0b10 base 16985 | -5/Upper Caves | Assimilating Soldier 6d into Collective. 16991 | -5/Upper Caves | Assimilating Soldier 6e into Collective. 17071 | -5/Upper Caves | Assimilating Slayer 6c into Collective. 17077 | -5/Upper Caves | Spotted B-75 Beast 17107 | -5/Upper Caves | Assimilating Beast 6a into Collective. 17135 | -5/Upper Caves | Lost 4 allies 17230 | -5/Upper Caves | Identified exit to Warlord 17468 | -5/Upper Caves | Assimilating Soldier 6f into Collective. 17546 | -5/Upper Caves | Learned Factory security intel 17558 | -5/Upper Caves | Assimilating Slayer 6d into Collective. 17776 | -5/Upper Caves | Found Alien Artifact 17776 | -5/Upper Caves | Identified Core Expander 17776 | -5/Upper Caves | Installed Core Expander, added new Weapon slot 17944 | -5/Upper Caves | Entered Warlord 17944 | -5/Warlord | Accompanied by 3 allies 18081 | -5/Warlord | Opened Warlord's prototype stash 18088 | -5/Warlord | Found Prototype Device 18088 | -5/Warlord | Identified System Purifier 18091 | -5/Warlord | Found Prototype Processor 18091 | -5/Warlord | Identified Exp. Armor Integrity Analyzer 18099 | -5/Warlord | Found Prototype Processor 18099 | -5/Warlord | Identified Exp. Targeting Computer 18118 | -5/Warlord | Found Prototype Reactor 18300 | -5/Warlord | Rebuked by Warlord 18325 | -5/Warlord | Warlord's base attacked by MAIN.C 18566 | -5/Warlord | Found Prototype Energy Gun 18566 | -5/Warlord | Identified Vortex Shotgun 18573 | -5/Warlord | Found Prototype Energy Gun 18573 | -5/Warlord | Identified Vortex Rail 18675 | -5/Warlord | Warlord forces counterattacked 18726 | -5/Warlord | Spotted B-86 Titan 18726 | -5/Warlord | Spotted Executioner 18741 | -5/Warlord | Assimilating Fighter 6b into Collective. 18771 | -5/Warlord | Discovered new exit (range 12) 18786 | -5/Warlord | Identified exit to Proximity Caves 18795 | -5/Warlord | Lost 7 allies 18821 | -5/Warlord | Entered Proximity Caves 18821 | -4/Proximity Caves | Accompanied by 3 allies 18824 | -4/Proximity Caves | Spotter reported a threat 19156 | -4/Proximity Caves | Spotted B-86 Titan 19189 | -4/Proximity Caves | Assimilating Titan 7a into Collective. 19469 | -4/Proximity Caves | Attracted the attention of an 0b10 outpost 19477 | -4/Proximity Caves | Assimilating Warden 7a into Collective. 19490 | -4/Proximity Caves | Assimilating Warrior 7a into Collective. 19529 | -4/Proximity Caves | Assimilating Virus 7a into Collective. 19550 | -4/Proximity Caves | Assimilating Veteran 7b into Collective. 19649 | -4/Proximity Caves | Entered Factory 19649 | -4/Factory | Accompanied by 4 allies 19649 | -4/Factory | Evolved 2 slots: Utility x2 19650 | -4/Factory | Identified exit to Research 19668 | -4/Factory | Identified Enh. Scrap Shield 19696 | -4/Factory | Assimilating Sage 7a into Collective. 19730 | -4/Factory | Discovered new exit (range 26) 19903 | -4/Factory | Assimilating Veteran 7c into Collective. 19982 | -4/Factory | P-70 Sage assimilated allied Veteran 7a 20053 | -4/Factory | Assimilating Veteran 7d into Collective. 20058 | -4/Factory | Assimilating Veteran 7e into Collective. 20109 | -4/Factory | Assimilating Assassin 7a into Collective. 20116 | -4/Factory | Assimilating Assassin 7b into Collective. 20433 | -4/Factory | Assimilating Sage 7b into Collective. 20782 | -4/Factory | Discovered new exit (range 16) 20823 | -4/Factory | Lost 3 allies 20892 | -4/Factory | Entered Upper Caves 21084 | -4/Upper Caves | Assimilating Assassin 7c into Collective. 21091 | -4/Upper Caves | Assimilating Assassin 7d into Collective. 21216 | -4/Upper Caves | Encountered a Warlord checkpoint 21589 | -4/Upper Caves | Discovered new exit (range 15) 21595 | -4/Upper Caves | Assimilating Enforcer 7a into Collective. 21611 | -4/Upper Caves | Assimilating Veteran 7f into Collective. 21662 | -4/Upper Caves | Learned Factory trap positions 21662 | -4/Upper Caves | Learned Extension trap positions 21662 | -4/Upper Caves | Learned Factory security intel 21662 | -4/Upper Caves | Learned Extension terminal intel 21662 | -4/Upper Caves | Learned Extension garrison access intel 21795 | -4/Upper Caves | Attracted the attention of an 0b10 checkpoint 21896 | -4/Upper Caves | Entered another Upper Caves area 21896 | -4/Upper Caves | Accompanied by 4 allies 21972 | -4/Upper Caves | Discovered exit to Research (range 6) 22096 | -4/Upper Caves | Learned Research security intel 22327 | -4/Upper Caves | Attracted the attention of an 0b10 outpost 22338 | -4/Upper Caves | Assimilating Warden 7b into Collective. 22348 | -4/Upper Caves | Assimilating Swordsman 7a into Collective. 22794 | -4/Upper Caves | Discovered new exit (range 9) 22795 | -4/Upper Caves | Attracted the attention of an 0b10 checkpoint 22852 | -4/Upper Caves | Entered Zhirov 22852 | -4/Zhirov | Accompanied by 6 allies 22853 | -4/Zhirov | Discovered new exit (range 4) 22874 | -4/Zhirov | Met Zhirov 22896 | -4/Zhirov | Learned location of Command (-1) 22906 | -4/Zhirov | Zhirov requested help retrieving the SGEMP Prototype 22927 | -4/Zhirov | Found Alien Artifact 22927 | -4/Zhirov | Identified Integrated Dissipator 22927 | -4/Zhirov | Installed Integrated Dissipator, increased core heat dissipation (+20) 22946 | -4/Zhirov | Found Alien Artifact 23213 | -4/Zhirov | Entered Proximity Caves 23213 | -3/Proximity Caves | Accompanied by 6 allies 23269 | -3/Proximity Caves | Spotted B-86 Titan 23301 | -3/Proximity Caves | Allies destroyed B-86 Titan 23381 | -3/Proximity Caves | Assimilating Veteran 7h into Collective. 23517 | -3/Proximity Caves | P-80 Master assimilated allied Veteran 7g 23801 | -3/Proximity Caves | Discovered exit to Research (range 11) 23835 | -3/Proximity Caves | Entered Research 23835 | -3/Research | Accompanied by 3 allies 23835 | -3/Research | Evolved 2 slots: Utility x2 23836 | -3/Research | Identified exit to Testing 23895 | -3/Research | Identified exit to DSF 23991 | -3/Research | Spotted B-86 Titan 24007 | -3/Research | Allies destroyed B-86 Titan 24201 | -3/Research | Assimilating Master 8a into Collective. 24271 | -3/Research | Assimilating Warden 8a into Collective. 24311 | -3/Research | Assimilating Assassin 8a into Collective. 24343 | -3/Research | Loaded intel: 5 recycling unit locations 24597 | -3/Research | Entered Testing 24597 | -3/Testing | Accompanied by 3 allies 24635 | -3/Testing | Found Prototype Energy Cannon 24635 | -3/Testing | Identified Disintegrator 24725 | -3/Testing | Found Prototype Energy Cannon 24725 | -3/Testing | Identified Null Cannon 24865 | -3/Testing | Discovered new exit (range 9) 25031 | -3/Testing | Watched by a mysterious "MATRIX" hacker. 25105 | -3/Testing | Entered Research 25105 | -2/Research | Accompanied by 3 allies 25105 | -2/Research | Evolved 2 slots: Power x2 25105 | -2/Research | Identified Vortex Chain Reactor 25106 | -2/Research | Identified exit to Access 25135 | -2/Research | Assimilating Master 9a into Collective. 25148 | -2/Research | Assimilating Master 9b into Collective. 25168 | -2/Research | Assimilating Enforcer 9a into Collective. 25174 | -2/Research | Assimilating Enforcer 9b into Collective. 25186 | -2/Research | Assimilating Terminator 9a into Collective. 25193 | -2/Research | Assimilating Terminator 9b into Collective. 25196 | -2/Research | Lost 5 allies 25227 | -2/Research | Assimilating Terminator 9c into Collective. 25332 | -2/Research | Assimilating Terminator 9d into Collective. 25529 | -2/Research | Assimilating Master 9c into Collective. 25870 | -2/Research | Assimilating Terminator 9e into Collective. 26020 | -2/Research | Found Fusion Bomb Launcher 26093 | -2/Research | Assimilating Warden 9a into Collective. 26113 | -2/Research | Assimilating Master 9d into Collective. 26215 | -2/Research | Loaded intel: 5 recycling unit locations 26340 | -2/Research | Assimilating Master 9e into Collective. 26343 | -2/Research | Assimilating Terminator 9f into Collective. 26415 | -2/Research | Lost 14 parts (2p5n5u2w) 26601 | -2/Research | Found Quantum Capacitor 26621 | -2/Research | Identified exit to Quarantine 26651 | -2/Research | Spotted B-90 Cyclops 26655 | -2/Research | Destroyed B-90 Cyclops 26789 | -2/Research | Found Prototype Processor 26789 | -2/Research | Identified Spectral Analyzer 27018 | -2/Research | Entered Quarantine 27096 | -2/Quarantine | Build established: Scavenger-Executioner 27102 | -2/Quarantine | Spotted Alpha 7 27103 | -2/Quarantine | Destroyed Alpha 7 27170 | -2/Quarantine | Found Exp. Targeting Computer 27194 | -2/Quarantine | Found Alien Launcher 27286 | -2/Quarantine | Repaired Exp. Weapon Shielding 27322 | -2/Quarantine | Found Prototype Launcher 27322 | -2/Quarantine | Identified Hellfire Missile Launcher 27774 | -2/Quarantine | System corruption reached 10% 27916 | -2/Quarantine | Repaired Quantum Reactor 27989 | -2/Quarantine | Spotted Fortress 28001 | -2/Quarantine | Destroyed Fortress 28090 | -2/Quarantine | Discovered new exit (range 6) 28090 | -2/Quarantine | Discovered new exit (range 7) 28531 | -2/Quarantine | Identified exit to Section 7 28535 | -2/Quarantine | Identified exit to Protoforge 28538 | -2/Quarantine | Entered Protoforge 28553 | -2/Protoforge | Central database locked down 28657 | -2/Protoforge | Superfortress began startup sequence 28697 | -2/Protoforge | Spotted Hotshot 28699 | -2/Protoforge | Spotted Hotshot 28736 | -2/Protoforge | Destroyed Hotshot 28756 | -2/Protoforge | Destroyed Hotshot 28840 | -2/Protoforge | Spotted B-90 Cyclops 28842 | -2/Protoforge | Destroyed B-90 Cyclops 28907 | -2/Protoforge | Spotted Hotshot 28908 | -2/Protoforge | Spotted Hotshot 28943 | -2/Protoforge | Destroyed Hotshot 28983 | -2/Protoforge | Destroyed Hotshot 29106 | -2/Protoforge | Spotted EXE-6 29106 | -2/Protoforge | Spotted EXE-6 29120 | -2/Protoforge | Core integrity fell below 50% 29129 | -2/Protoforge | Destroyed EXE-6 29133 | -2/Protoforge | Destroyed EXE-6 29138 | -2/Protoforge | Spotted AP7-3 29141 | -2/Protoforge | Spotted AP7-3 29142 | -2/Protoforge | Destroyed AP7-3 29149 | -2/Protoforge | Destroyed AP7-3 29183 | -2/Protoforge | Spotted Decapitator 29364 | -2/Protoforge | Found Prototype Protection 29364 | -2/Protoforge | Identified Cep. Core Shell 29376 | -2/Protoforge | Found Prototype Storage 29376 | -2/Protoforge | Identified Cep. Chromion Battery 29394 | -2/Protoforge | Found Prototype Ballistic Gun 29394 | -2/Protoforge | Identified Cep. XC Strikerail 29397 | -2/Protoforge | Found Cep. XC Strikerail 29428 | -2/Protoforge | Scanned by Researcher 29451 | -2/Protoforge | Spotted Decapitator 29453 | -2/Protoforge | Destroyed Decapitator 29484 | -2/Protoforge | Identified Transdimensional Reconstructor 29484 | -2/Protoforge | Warped through subspace 29491 | -2/Protoforge | Identified Sigix Terminator 29515 | -2/Protoforge | Lost 14 parts (2p7u5w) 29520 | -2/Protoforge | Found Cep. Core Shell 29523 | -2/Protoforge | Found Cep. Core Shell 29526 | -2/Protoforge | Found Cep. Core Shell 29535 | -2/Protoforge | Fired Sigix Terminator 29535 | -2/Protoforge | Additional patrols dispatched to research labs 29538 | -2/Protoforge | First assault squad dispatched 29553 | -2/Protoforge | Released all parts (13) 29569 | -2/Protoforge | Core integrity fell below 20% 29574 | -2/Protoforge | Destroyed by G-73 Enforcer with Phase Gun Last Messages --------------- 29568_ G-73 Enforcer unfolds itself. 29568_ M-36 Artificer unfolds itself. 29568_ Penetrated by HV Slug. 29568_ HV Slug penetrates Reinforced Barrier. 29568_ HV Slug penetrates Earth. 29568_ Knocked back. 29568_ Penetrated by Railslug. 29568_ Knocked back. 29568_ Penetrated by Railslug. 29568_ Exp. Surge Thruster destroyed. 29568_ Knocked back. 29568_ Penetrated by Railslug. 29572_ Penetrated by HV Slug. 29572_ Knocked back. 29572_ HV Slug penetrates Earth. 29572_ HV Slug penetrates Reinforced Barrier. 29572_ HV Slug penetrates Earth. 29572_ Penetrated by Railslug. 29572_ Knocked back. 29572_ Railslug penetrates Earth. Map ----- +----------------------------------------------------+ | ?????????????????????????????????????????????????? | | ?????????????????????????????????????????????????? | | ?????????????????????????????????????????????????? | | ?????????????????????????????????????????????????? | | ????????????????????????????????????#????????????? | | ???????????????????????????????????? ????? ?????? | | ???????????????????????????????????? ###? #????? | | ?????????????????????????###########"""## #????? | | ???????????????????????? ##???? | | ??????????????????????? "###?? | | ??????????????????????? " ### | | ??????????????????????###;;; """""""" | | ?????????????????????## ; " | | ?????????????????????# ; gmgg " | | ????????????????????##;;;;;; g """"""""""""" | | ????????????????????# ; " | | ????????????????????#;;;;;;;; ;;"""""""""""" | | ???????????????????## ; ; | | ????????????????##?#;;;;;;;;; ;;;"""""" | | ????????????????# #; " | | ??????????????????# ; " | | ??????????????????# ; " | | ????????????????# # ; | | ???????????#////##;;; $ # | | ?????????? x | | ?????????? @ FFF | | ?????????? FFF | | ?????????? FFF | | ??????????? ! | | ??????????? ** | | ????????????!!!!##;;; !] | | ????????????""???# ; " " | | ?????????????????## ; " "" | | ??????????????????# ; " | | ??????????????????# ;;;;;;;;;;;;;;;;;;""""""" | | ??????????????????## | | ???????????????????# | | ???????????????????## | | ????????????????????# ;;;;""""""""""""""""" | | ????????????????????? ;??? | | ??????????????????????? ????? "" | | ????????????????????????????????"""" | | ?????????????????????????????? "" " | | ?????????????????????????????# """ | | ?????????????????????????????# "" | | ?????????????????????????????# " "" | | ?????????????????????????????# "" "" """" | | ?????????????????????????????# " "" | | ?????????????????????????????# " "" " "" | | ?????????????????????????????# " " "" """"" | +----------------------------------------------------+ Best States ------------- Heat Dissipation 211 Coolant Potential 100 Energy Generation 75 Energy Capacity 950 Matter Stores 623 Matter Capacity 800 Sight Range 22 Robot Scan Range 20 Terrain Scan Range 16 Terrain Scan Density 10 Jamming Range 14 Armor Coverage 1025 Resistance: KI 30 Core Shielding 90 Weapon Shielding 90 Evasion (%) 50 Targeting Accuracy 12 Target Analysis 8 Recoil Reduction 4 Offensive Hacking 25 Defensive Hacking 25 Item Schematics ----------------- Combat Drone Bay | -6/Data Miner | Free Lgt. Regenerative Plating | -6/Data Miner | Free Cld. Nuclear Pulse Thruster | -6/Data Miner | Free Exp. Heat Sink | -6/Data Miner | Free Tiamat Missile Launcher | -6/Data Miner | Free Imp. Force Field | -6/Data Miner | Free Hvy. Siege Treads | -6/Data Miner | Free Railgun | -6/Data Miner | Free Adv. Component Analysis Suite | -6/Data Miner | Free Biometal Leg | -6/Data Miner | Free Com. HERF Cannon | -5/Factory | Hacked Assault Drone Bay | -4/Zhirov | Free Exp. Optical Array | -4/Zhirov | Free Imp. Arc Thrower | -4/Zhirov | Free Rnf. Quantum Reactor | -2/Quarantine | Hacked Exp. Hacking Suite | -2/Quarantine | Archive Ionic Axe | -2/Quarantine | Archive Imp. Diametric Drive | -2/Quarantine | Archive Com. Linear Accelerator | -2/Quarantine | Archive Robot Schematics ------------------ H-66 Slayer | -6/Data Miner | Free B-60 Warrior | -6/Data Miner | Free S-27 Virus | -6/Data Miner | Free M-22 Extractor | -6/Data Miner | Free A-02 Transporter | -2/Quarantine | Archive R-06 Scavenger | -2/Quarantine | Archive Fabricated ------------ Imp. Arc Projector | x2 | -6/Factory | Preloaded Repaired ---------- Exp. Weapon Shielding | 21% | -2/Quarantine Quantum Reactor | 48% | -2/Quarantine Studied --------- Arm. Huge Wheel | -6/Factory | Hacked Wheel | -6/Factory | Hacked Adv. Treads | -6/Factory | Hacked Enh. Nova Cannon | -2/Quarantine | Hacked Centrium Wheel | -2/Quarantine | Hacked Lgt. Particle Reactor | -2/Quarantine | Hacked Quantum Reactor | -2/Protoforge | Hacked Alien Tech Used ----------------- Core Expander Integrated Dissipator Transdimensional Reconstructor Sigix Terminator Achievements -------------- Be The Sidekick Botjacking Executioner Hammer Time Hulk Smash I, Locutus Nope Reappropriation Super-what Now? Wiki Contributor Challenges ------------ None Game ------ Seed ShockPitchforkRay Manual? 0 Play Time 07:39:28 Cumulative 187.7 hours Start 2026.02.17 @ 02:28:45 End 2026.02.18 @ 20:21:38 Sessions 16 Manual Loads 0 Difficulty Rogue Special Mode None Game No. 69 Rogue 69 Adventurer 0 Explorer 0 Win Type - Total 9 Types 7/0/1/1/0/0/0/0/0/0 Lore% 65 Gallery% 61 Achievement% 54 Wizard Run 0 Options --------- Layout 0 ASCII 0 Keyboard 0 Movement Arrows Keybinds 0 Fullscreen 2 Font 18/Terminus Map View 76x50 Zoom Use 0% Tactical HUD 1 Map Filters NONE Filters NONE Steam 1 RUN: 412c5e7b-c1f4-455f-8f2e-134a668d5569